Cogmind - Beta 14 @@@ ROGUE MODE // 2024.10.04 @ 18:15:44 Player: Spoing Result: Self-destructed Performance ------------- Evolutions (1) 500 Regions Visited (3) 600 Robots Destroyed (11) 55 Value Destroyed (264) 264 Prototype IDs (0) 0 Alien Tech Used (0) 0 Bonus (0) 0 TOTAL SCORE: 1419 Bonus ------- None Cogmind --------- Core Integrity 138/400 Matter 295/300 Energy 100/100 System Corruption 6% Temperature Cool (0) Movement Core (750) Ox14 Location -9/Materials Parts ------- > --- POWER (1) -------- (None) > --- PROPULSION (3) --- (None) > --- UTILITY (3) ------ High-capacity Storage Unit > --- WEAPON (2) ------- Grenade Launcher > --- INVENTORY (20) --- Small Storage Unit Medium Storage Unit Visual Processing Unit Improved Terrain Scanner Terrain Scan Processor Peak State ------------ > --- POWER ------------ Ion Engine > --- PROPULSION ------- Wheel Compact Wheel > --- UTILITY ---------- High-capacity Storage Unit Sensor Array Signal Interpreter > --- WEAPON ----------- Medium Laser Medium Laser > --- INVENTORY -------- Ion Engine Compact Wheel Small Storage Unit Visual Processing Unit Improved Terrain Scanner Small Laser Grenade Launcher [Rating: 9] Favorites ----------- Power Ion Engine Engine Ion Engine Propulsion Compact Wheel Leg Aluminum Leg Wheel Compact Wheel Utility High-capacity Storage Unit Device Sensor Array Storage High-capacity Storage Unit Processor Signal Interpreter Weapon Medium Laser Energy Gun Medium Laser Launcher Grenade Launcher Build | -11 -10 -10 -9 ------- Run | Yrd Mat Min Mat Slots Evolved 2 | . . . 2 Power . | . . . . Propulsion 1 | . . . 1 Utility 1 | . . . 1 Weapon . | . . . . Parts Attached 15 | 6 3 . 6 Power 2 | 1 . . 1 Engine 2 | 1 . . 1 Core . | . . . . Reactor . | . . . . Propulsion 4 | 2 . . 2 Treads . | . . . . Leg 1 | . . . 1 Wheel 3 | 2 . . 1 Hover . | . . . . Flight . | . . . . Utility 5 | 1 3 . 1 Device 2 | . 1 . 1 Storage 2 | 1 1 . . Processor 1 | . 1 . . Hackware . | . . . . Protection . | . . . . Artifact . | . . . . Weapon 4 | 2 . . 2 Energy Gun 3 | 2 . . 1 Energy Cannon . | . . . . Ballistic Gun . | . . . . Ballistic Cannon . | . . . . Launcher 1 | . . . 1 Special Weapon . | . . . . Impact Weapon . | . . . . Slashing Weapon . | . . . . Piercing Weapon . | . . . . Special Melee Weapon . | . . . . Unidentified Prototypes . | . . . . Parts Lost 11 | . . . 11 Power 2 | . . . 2 Propulsion 4 | . . . 4 Utility 2 | . . . 2 Weapon 3 | . . . 3 Highest Loss Streak 7 | . . . 7 To Critical Strikes . | . . . . Average Slot Usage (%) 81 | . 89 100 64 Engine 10 | . 14 14 5 Wheel 21 | . 28 28 13 Device 4 | . 4 . 7 Storage 12 | . 14 14 11 Processor 8 | . . 14 8 Energy Gun 23 | . 28 28 17 Peak Build Rating 9 | 6 7 8 9 Average Rating 6 | 3 6 7 6 On Entrance 5 | . 6 7 8 Naked Turns . | . . . . Heaviest Build 50 | 14 50 49 50 Greatest Support 26 | 26 26 26 26 Greatest Overweight (x) 13 | . 1 1 13 Average Overweight (x) 1 | . . 1 1 Largest Inventory Capacity 20 | 8 20 20 20 Average Capacity 18 | 6 18 20 20 Most Carried 9 | 5 8 8 9 Average Carried 6 | 2 4 7 7 Final Capacity 20 | 8 20 20 20 Final Carried 8 | 2 7 8 5 Class Distribution -------------------- 100% | Mutant Dominant Class ---------------- Mutant | -10/Materials Mutant | -10/Mines Mutant | -9/Materials Resources | -11 -10 -10 -9 ----------- Run | Yrd Mat Min Mat Matter Collected 363 | 242 12 36 73 Remotely . | . . . . Salvage Created 361 | . 12 57 292 Parts 23 | . 4 7 12 Haulers Intercepted . | . . . . Recyclers Shooed . | . . . . Parts Field Recycled . | . . . . Retrieved Matter . | . . . . Parts Self-Destructed . | . . . . Prevented . | . . . . Kills | -11 -10 -10 -9 ------- Run | Yrd Mat Min Mat Combat Hostiles Destroyed 6 | . . . 6 Guns 6 | . . . 6 Classes Destroyed 6 | . 1 2 3 Worker 3 | . . 2 1 Tunneler 1 | . . 1 . Watcher 1 | . 1 . . Grunt 3 | . . . 3 Brawler 1 | . . . 1 Sentry 2 | . . . 2 Best Kill Streak 4 | . 1 3 4 Combat Bots Only 4 | . . . 4 Max Kills in Single Turn 2 | . 1 2 1 Gunslinging . | . . . . Exploded . | . . . . Melee . | . . . . Uniques/NPCs Destroyed . | . . . . Combat | -11 -10 -10 -9 -------- Run | Yrd Mat Min Mat Hostile Shots Fired 88 | . . 8 80 Missed 18 | . . 2 16 Damage Taken 1005 | . . 89 916 Core 278 | . . 16 262 Absorbed by Shields . | . . . . Core Remaining (%) 96 | 100 . 93 . Volleys Fired 45 | . 1 2 42 Largest 2 | . 2 2 2 Hottest 100 | . 100 100 100 Shots Fired 60 | . 2 4 54 Gun 58 | . 2 4 52 Cannon . | . . . . Launcher 2 | . . . 2 Special . | . . . . Kinetic . | . . . . Thermal 58 | . 2 4 52 Explosive 2 | . . . 2 Electromagnetic . | . . . . Robot Hit Streak 18 | . 1 3 18 Robot Miss Streak 3 | . . . 3 Penetration Max . | . . . . Secondary Targets 1 | . . . 1 Max Gunslinging Chain 1 | . . . 1 Shots Hit Robots 48 | . 1 2 45 Core Hits 21 | . 1 3 17 Critical Kills . | . . . . Critical Parts Destroyed . | . . . . Critical Strikes 3 | . . 1 2 Burn 3 | . . 1 2 Melee Attacks . | . . . . Impact . | . . . . Slashing . | . . . . Piercing . | . . . . Sneak Attacks . | . . . . Combat Hostiles . | . . . . Follow-up Attacks . | . . . . Damage Inflicted 769 | . 13 51 705 Guns 582 | . 13 51 518 Cannons . | . . . . Explosions 187 | . . . 187 Melee . | . . . . Ramming . | . . . . Kinetic . | . . . . Thermal 582 | . 13 51 518 Explosive 187 | . . . 187 Electromagnetic . | . . . . Impact . | . . . . Slashing . | . . . . Piercing . | . . . . Highest Corruption 6 | . . . 6 Average Corruption 5 | . . . 5 Corruption Purged . | . . . . Corruption Blocked . | . . . . Effects 1 | . . . 1 Matter Fused 1 | . . . 1 Overload Shots . | . . . . Overflow Damage 13 | . . . 13 Projectiles . | . . . . Explosions 13 | . . . 13 Melee . | . . . . Knockbacks . | . . . . Impact . | . . . . Kinetic . | . . . . Secondary . | . . . . Self-Inflicted Damage 78 | . . . 78 Shots 2 | . . . 2 Rammed . | . . . . Targets Rammed . | . . . . Kicked . | . . . . Crushed . | . . . . Highest Temperature 437 | . 39 39 437 Average Temperature 242 | . 24 23 281 Received Heat Transfer 393 | . . 36 357 Effects 8 | . . . 8 Shutdowns 1 | . . . 1 Energy Bleed 2 | . . . 2 Interference 2 | . . . 2 Matter Decay 1 | . . . 1 Damage (major) 2 | . . . 2 Siege Activations . | . . . . Robots Corrupted . | . . . . Combat Hostiles . | . . . . Parts Fried . | . . . . Impact Corruptions . | . . . . Robots Melted . | . . . . Combat Hostiles . | . . . . Parts Melted 6 | . . . 6 Heat Transferred 1830 | . 37 222 1571 Parts Sabotaged . | . . . . Parts Stolen . | . . . . Parts Stripped . | . . . . Power Chain Reactions . | . . . . Alert | -11 -10 -10 -9 ------- Run | Yrd Mat Min Mat Peak Influence 182 | . 28 40 182 Initial 15 | . . 10 15 Average 35 | . 10 13 68 Maximum Alert Level . | . . . . Low Security (%) 100 | 100 100 100 100 Level 1 . | . . . . Level 2 . | . . . . Level 3 . | . . . . Level 4 . | . . . . Level 5 . | . . . . High Security . | . . . . Max Security . | . . . . Squads Dispatched 1 | . . . 1 Investigation 1 | . . . 1 Extermination . | . . . . Reinforcement . | . . . . Assault . | . . . . Garrison . | . . . . Intercept . | . . . . Searches Triggered . | . . . . Construction Impeded . | . . . . Haulers Reinforced . | . . . . Active Scanning Responses . | . . . . Cargo Convoy Interrupts . | . . . . Stealth | -11 -10 -10 -9 --------- Run | Yrd Mat Min Mat Distress Signals 1 | . . . 1 Communications Jammed . | . . . . Distress Signals . | . . . . Times Spotted 18 | . 1 2 15 Peak Tracking Total 8 | . 1 2 8 Tactical Retreats 1 | . . . 1 Traps | -11 -10 -10 -9 ------- Run | Yrd Mat Min Mat Traps Triggered 1 | . . . 1 Indirectly . | . . . . Trap Hack Attempts . | . . . . Triggered . | . . . . Disarmed . | . . . . Reprogrammed . | . . . . Reused . | . . . . Traps Extracted . | . . . . Installed . | . . . . Triggered . | . . . . Machines | -11 -10 -10 -9 ---------- Run | Yrd Mat Min Mat Machines Disabled 1 | . . . 1 Max in Single Turn 1 | . . . 1 Machines Repaired . | . . . . Machines Dismantled . | . . . . Machines Sabotaged . | . . . . Overloaded Fab Kills . | . . . . Hacking | -11 -10 -10 -9 --------- Run | Yrd Mat Min Mat Machines Accessed 3 | . 2 1 . Terminals 3 | . 2 1 . Fabricators . | . . . . Repair Stations . | . . . . Recycling Units . | . . . . Scanalyzers . | . . . . Garrison Access . | . . . . Total Hacks 5 | . 3 2 . Successful 1 | . 1 . . Failed 4 | . 2 2 . Catastrophic 1 | . 1 . . Database Lockouts . | . . . . Manual 4 | . 2 2 . Terminals 5 | . 3 2 . Fabricators . | . . . . Repair Stations . | . . . . Recycling Units . | . . . . Scanalyzers . | . . . . Garrison Access . | . . . . Terminal Hacks 1 | . 1 . . Terminal Index 1 | . 1 . . Fabricator Hacks . | . . . . Repair Station Hacks . | . . . . Recycling Unit Hacks . | . . . . Scanalyzer . | . . . . Garrison Access Hacks . | . . . . Unauthorized Hacks . | . . . . Terminals . | . . . . Fabricators . | . . . . Repair Stations . | . . . . Recycling Units . | . . . . Scanalyzers . | . . . . Garrison Access . | . . . . Data Cores Recovered . | . . . . Used . | . . . . Hacking Detections 3 | . 2 1 . Full Trace Events . | . . . . Feedback Events . | . . . . Feedback Blocked . | . . . . Robot Schematics Acquired . | . . . . Robots Built . | . . . . Authchips . | . . . . Time . | . . . . Total Robot Build Rating . | . . . . Part Schematics Acquired . | . . . . Parts Built . | . . . . Authchips . | . . . . Time . | . . . . Total Part Build Rating . | . . . . Parts Repaired . | . . . . Time . | . . . . Parts Recycled . | . . . . Recycled Matter . | . . . . Retrieved Matter . | . . . . Retrieved Components . | . . . . Parts Scanalyzed . | . . . . Part Schematics Acquired . | . . . . Parts Damaged . | . . . . Bothacking | -11 -10 -10 -9 ------------ Run | Yrd Mat Min Mat Used RIF Installer . | . . . . Robots Hacked . | . . . . Non-combat . | . . . . Combat . | . . . . Robot Hacks Applied . | . . . . Relay Couplers Released . | . . . . Fabnet Peak Effective % . | . . . . Robots Rewired . | . . . . Allies Hacked . | . . . . Hacks Repelled . | . . . . Allies | -11 -10 -10 -9 -------- Run | Yrd Mat Min Mat Total Allies . | . . . . Largest Group . | . . . . Highest-Rated Group . | . . . . Highest-Rated Ally . | . . . . Total Orders . | . . . . Ally Attacks . | . . . . Total Damage . | . . . . Kills . | . . . . Allies Corrupted . | . . . . Allies Melted . | . . . . Intel | -11 -10 -10 -9 ------- Run | Yrd Mat Min Mat Robot Analysis Total . | . . . . Derelict Logs Recovered 1 | . . 1 . Drone Launches . | . . . . Drone Recoveries . | . . . . Exploration | -11 -10 -10 -9 ------------- Run | Yrd Mat Min Mat Turns Passed 713 | 47 141 223 302 Spaces Moved 482 | 38 126 179 139 Core 6 | 3 . . 3 Treads . | . . . . Legs 4 | . . . 4 Wheels 472 | 35 126 179 132 Hover . | . . . . Flight . | . . . . Fastest Speed 50 | 50 90 105 105 Average Speed 109 | 90 102 105 128 Slowest Speed 700 | 100 105 105 700 Overloaded Moves . | . . . . Propulsion Burnouts . | . . . . Robots Hopped . | . . . . Cave-ins Triggered . | . . . . Exploration Rate (%) 20 | 3 27 30 23 Regions Visited 3 Branch Regions 1 Pre-discovered Areas . | . . . . Known Exits Taken 2 | . 1 1 . Unknown Exits Taken 1 | 1 . . . Scrap Searched . | . . . . Spaces Dug . | . . . . Terrain Destroyed 11 | . . . 11 Melee . | . . . . Projectile . | . . . . AOE 11 | . . . 11 Terrain Rammed . | . . . . Walls Destroyed . | . . . . Machines Disabled . | . . . . Actions | -11 -10 -10 -9 --------- Run | Yrd Mat Min Mat Total 602 | 49 135 210 208 Wait 47 | . . 29 18 Move 479 | 37 125 178 139 Hop . | . . . . Pick Up 16 | 6 6 1 3 Fast Attach 2 | 2 . . . Attach 11 | 4 1 . 6 Detach . | . . . . Swap 2 | . 2 . . Drop . | . . . . Fire 45 | . 1 2 42 Melee . | . . . . Ram . | . . . . Kick . | . . . . Crush . | . . . . Escape Stasis . | . . . . Rewire . | . . . . Trap . | . . . . Miscellaneous . | . . . . Route ------- -11/Scrapyard -10/Materials -10/Mines -9/Materials (discovered 1 exit: Sto) History --------- Turn | Location | Event 2 | -11/Scrapyard | Met Revision 17 26 | -11/Scrapyard | Discovered new exit (range 15) 48 | -11/Scrapyard | Entered Materials 173 | -10/Materials | Discovered new exit (range 15) 189 | -10/Materials | Identified exit to Mines 189 | -10/Materials | Entered Mines 220 | -10/Mines | Discovered new exit (range 13) 282 | -10/Mines | Identified exit to Materials 304 | -10/Mines | Build established: Mutant 412 | -10/Mines | Entered Materials 412 | -9/Materials | Evolved 2 slots: Propulsion x1, Utility x1 413 | -9/Materials | Identified exit to Storage 673 | -9/Materials | Lost 7 parts (1p2n2u2w) 698 | -9/Materials | Core integrity fell below 50% 714 | -9/Materials | Self-destructed Last Messages --------------- Acquired 36 matter. R-06 Scavenger collects Lgt. Treads. R-06 Scavenger collects Hammer. K-01 Serf collects debris. Ion Engine melted. G-34 Mercenary destroyed. System corrupted: Matter fused (-7). Acquired Aluminum Leg. Acquired 17 matter. R-06 Scavenger collects Heat Sink. K-01 Serf collects debris. Sml. Laser destroyed. Acquired 10 matter. Destroyed Heat Sink. K-01 Serf destroyed. Matter Filter disabled. G-34 Mercenary destroyed. Acquired 10 matter. U-05 Engineer lays Concrete. Aluminum Leg destroyed. Map ----- +----------------------------------------------------+ | ?????????????????????????????????????????????????? | | ?????????????????????????????????????????????????? | | ?????????????????????????????????????????????????? | | ?????????????????????????????????????????????????? | | ?????????????????????????????????????????????????? | | ?????????????????????????????????????????????????? | | ?????????????????????????????????????????????????? | | ?????????????????????????????????????????????????? | | ?????????????????????????????????????????????????? | | ?????????????????????????????????????????????????? | | ?????????????????????????????????????????????????? | | ?????????????????????????????????????????????????? | | ?????????????????????????????????????????????????? | | ?????????????????????????????????????????????????? | | ?????????????????????????????????????????????????? | | ????????????????????#######??????????????????????? | | ??????????????????? #??#######?????????????? | | ???????????????????"""" #??# = ???????????? | | ???????????????????"""" #??# #?????????? | | ??????????????????""""" #??# #?????????? | | ??????????????????""""" #??# """ #?????????? | | ??????????????????""""" #??# """ #?????????? | | ?????????????????#""""" #### " " """ #?????????? | | ?????????????????#"""" #? "R" ??????????? | | ?????????????????# % #???"" ????????????? | | ?????????????????###### @= ######+#####?????????? | | ???????????# %g% #?????????? | | ???????????# ! = #?????????? | | ???????????# w u #?????????? | | ???????????+ ####### u####### g w #?????????? | | ?????????????????????## ?????# a #?????????? | | ??????????????????????# ?????# ##+#?????????? | | ??????????????????????#a"""?????# #? ????????? | | ??????????????????????# """"????# #??""" ??????? | | ??????????????????????# """"????# #??"T" ??????? | | ??????????????????????#="""?????# #??? ???????? | | ??????????????????????# ?????# #????????????? | | ??????????????????????# ?????# #????????????? | | ??????????????????????##+##?????# #????????????? | | ???????????????????????????#????# #????????????? | | ???????????????????????????#!!??# #????????????? | | ???????????????????????????# # #????????????? | | ???????????????????????????# [ + #????????????? | | ???????????????????????????# # ###????????????? | | ???????????????????????????# ??# #??????????????? | | ??????????????????????????# ????# #??????????????? | | ????????????????????????????????# #??????????????? | | ????????????????????????????????# #??????????????? | | ????????????????????????????????# #??????????????? | | ????????????????????????????????# #??????????????? | +----------------------------------------------------+ Best States ------------- Heat Dissipation 28 Energy Generation 10 Energy Capacity 250 Matter Stores 300 Matter Capacity 300 Sight Range 16 Robot Scan Range 14 Terrain Scan Density 10 Evasion (%) 42 Item Schematics ----------------- None Robot Schematics ------------------ None Fabricated ------------ Nothing Alien Tech Used ----------------- None Achievements -------------- None Challenges ------------ None Game ------ Seed UtilityAerolevCompactor Manual? 0 Play Time 00:10:19 Cumulative 22.3 hours Start 2024.10.04 @ 18:07:31 End 2024.10.04 @ 18:15:44 Sessions 1 Manual Loads 0 Difficulty Rogue Special Mode None Game No. 21 Rogue 20 Adventurer 1 Explorer 0 Win Type - Total 0 Types 0/0/0/0/0/0/0/0/0 Lore% 12 Gallery% 21 Achievement% 21 Wizard Run 0 Options --------- Layout 1 ASCII 0 Keyboard 0 Movement Mouse Keybinds 0 Fullscreen 1 Font 32/SmallcapsGlow Map View 50x35 Zoom Use 0% Tactical HUD 0 Map Filters NONE Filters NONE Steam 1 RUN: 665938c7-45a0-4661-962d-33282958b2b0